[Event "BL 2016-17"]
[Site "Jenbach"]
[Date "2017.04.22"]
[Round "11"]
[White "Pinter, Erik"]
[Black "Beckhuis, Gernod"]
[Result "1-0"]
[ECO "C67"]
[WhiteElo "2384"]
[BlackElo "2261"]
[Annotator "NA"]
[PlyCount "87"]
[EventDate "2017.??.??"]
[EventCountry "AUT"]
[SourceTitle "playchess.com"]
[Source "ChessBase"]
[SourceQuality "1"]
[WhiteTeam "Nickelsdorf"]
[BlackTeam "Wien-SK Ottakring"]
[TimeControl "40/5400+30:1800+30"]

1. e4 {[%emt 0:00:00]} e5 {[%emt 0:00:01]} 2. Nf3 {[%emt 0:01:51]} Nc6 {[%emt 0:00:02]} 3. Bb5 {[%emt 0:00:07]} Nf6 {[%emt 0:00:02]} 4. O-O {[%emt 0:00:13]} Nxe4 {[%emt 0:00:02]} 5. Re1 {[%emt 0:00:08]} Nd6 {[%emt 0:00:03]} 6. Nxe5 {[%emt 0:00:07]} Be7 {[%emt 0:00:05]} 7. Bf1 {[%emt 0:00:07]} Nxe5 {[%emt 0:00:05]} 8. Rxe5 {[%emt 0:00:04]} O-O {[%emt 0:00:05]} 9. d4 {[%emt 0:00:42]} Bf6 {[%emt 0:00:01]} 10. Re1 {[%emt 0:00:07]} Re8 {[%emt 0:00:06] C67: Ruy Lopez: Berlin Defence: 4 0-0 Nxe4} 11. Rxe8+ {LiveBook: 42 Games} (11. Bf4 Rxe1 12. Qxe1 Ne8 13. c3 d5 14. Nd2 g6 15. Nf3 Ng7 16. Qe3 c6 17. Re1 Be6 18. Ne5 Qa5 19. a3 Re8 20. Nd3 Qd8 21. Qd2 Bf5 22. Rxe8+ Qxe8 23. Qe3 Qxe3 {½-½ (23) Vachier Lagrave,M (2796)-Grischuk,A (2742) Sharjah 2017}) 11... Nxe8 12. c3 {[%emt 0:04:02]} d5 {[%emt 0:00:08]} 13. Bd3 {[%emt 0:00:10]} g6 {[%emt 0:00:03]} 14. Bf4 {[%emt 0:03:00]} Ng7 {[%emt 0:00:20]} 15. Qb3 $146 {[%emt 0:05:37]} (15. Na3 Ne6 16. Bg3 h5 17. h3 c5 18. dxc5 Nxc5 {½-½ (31) Halvax,G (2313)-Schreiner,P (2460) Feistritz an der Drau 2014}) 15... c6 {[%emt 0:01:37]} 16. Nd2 {[%emt 0:02:01]} Qb6 {[%emt 0:01:04]} 17. Qc2 {[%emt 0:02:03]} Bf5 {[%emt 0:04:42]} 18. Bxf5 {[%emt 0:00:14]} Nxf5 {[%emt 0:00:03]} 19. Re1 {[%emt 0:00:12]} Ng7 {[%emt 0:01:11]} 20. Nf3 {[%emt 0:03:30]} Re8 {[%emt 0:02:38]} 21. Be5 {[%emt 0:04:55]} Bxe5 {[%emt 0:01:06]} 22. dxe5 {[%emt 0:00:34]} Ne6 {[%emt 0:02:03]} 23. h4 {[%emt 0:08:11]} c5 {[%emt 0:12:36]} 24. Qd2 {[%emt 0:09:35]} d4 {[%emt 0:02:22]} 25. c4 {[%emt 0:03:48]} Rd8 {[%emt 0:11:21]} 26. Re2 {[%emt 0:11:40]} Qa6 {[%emt 0:07:44]} 27. b3 {[%emt 0:00:35]} b5 {[%emt 0:00:29]} 28. cxb5 {[%emt 0:04:52]} Qxb5 {[%emt 0:00:02]} 29. Ng5 {[%emt 0:08:36]} d3 {[%emt 0:12:13]} 30. Nxe6 {[%emt 0:03:15]} fxe6 {[%emt 0:00:31]} 31. Re1 {[%emt 0:05:15]} a5 {[%emt 0:08:32]} 32. h5 {[%emt 0:03:17]} a4 {[%emt 0:10:18]} 33. hxg6 {[%emt 0:00:28]} hxg6 {[%emt 0:00:31]} 34. Qg5 {[%emt 0:03:28]} Qe8 {[%emt 0:00:20]} 35. Rd1 {[%emt 0:00:44]} Rd5 {[%emt 0:04:11]} 36. Qg3 {[%emt 0:06:10]} axb3 {[%emt 0:16:04]} 37. axb3 {[%emt 0:00:14]} d2 {[%emt 0:01:34]} 38. Qg5 {[%emt 0:00:11]} Qd7 {[%emt 0:01:04]} 39. Qxg6+ {[%emt 0:00:10]} Kf8 {[%emt 0:00:48]} 40. Qh6+ {[%emt 0:00:00]} Kg8 {[%emt 0:01:22]} (40... Ke7 $16) 41. Qg5+ {[%emt 0:09:01]} Kf8 {[%emt 0:03:40]} 42. f3 {[%emt 0:11:54]} Rd4 {[%emt 0:10:08]} 43. Kf2 {[%emt 0:01:32]} Qd5 {[%emt 0:02:49]} (43... Qg7 $16 44. Qxg7+ Kxg7) 44. Rh1 {[%emt 0:05:13]} 1-0

[Event "BL 2016-17"]
[Site "Jenbach"]
[Date "2017.04.22"]
[Round "11"]
[White "Mesaros, Florian"]
[Black "Anistratov, Dmitriy"]
[Result "1-0"]
[ECO "A05"]
[WhiteElo "2382"]
[BlackElo "2292"]
[Annotator "ChessBase"]
[PlyCount "93"]
[EventDate "2017.??.??"]
[EventCountry "AUT"]
[SourceTitle "playchess.com"]
[Source "ChessBase"]
[SourceQuality "1"]
[WhiteTeam "Wulkaprodersdorf"]
[BlackTeam "Götzis"]
[TimeControl "40/5400+30:1800+30"]

1. Nf3 {[%emt 0:00:00]} Nf6 {[%emt 0:00:13]} 2. c4 {[%emt 0:00:00]} d6 {[%emt 0:00:14]} 3. d4 {[%emt 0:00:00]} Nbd7 {[%emt 0:00:15]} 4. Nc3 {[%emt 0:00:00]} c6 {[%emt 0:00:12]} 5. e4 {[%emt 0:00:09]} e5 {[%emt 0:00:07]} 6. Be2 {[%emt 0:00:16]} Be7 {[%emt 0:00:06]} 7. O-O {[%emt 0:00:23]} a6 {[%emt 0:00:17]} 8. Nh4 {[%emt 0:00:18]} O-O {[%emt 0:17:30]} 9. Nf5 {[%emt 0:00:59]} Re8 {[%emt 0:01:33]} 10. Nxe7+ {[%emt 0:01:31]} Qxe7 {[%emt 0:00:50]} 11. d5 {[%emt 0:01:04]} c5 {[%emt 0:02:36]} 12. Be3 {[%emt 0:07:38]} Nf8 {[%emt 0:03:44]} 13. Rb1 {[%emt 0:05:18]} Qc7 {[%emt 0:12:58]} 14. Bg5 {[%emt 0:04:18]} Qd8 {[%emt 0:07:38]} 15. h3 {[%emt 0:09:12]} h6 {[%emt 0:01:24]} 16. Be3 {[%emt 0:03:22]} Ng6 {[%emt 0:04:52]} 17. Qd2 {[%emt 0:04:54]} Nh7 {[%emt 0:06:28]} 18. Bg4 {[%emt 0:02:08]} Bxg4 {[%emt 0:11:16]} 19. hxg4 {[%emt 0:00:12]} Qf6 {[%emt 0:05:40]} 20. b4 {[%emt 0:02:28]} cxb4 {[%emt 0:03:39]} 21. Rxb4 {[%emt 0:00:28]} Rac8 {[%emt 0:01:18]} 22. Rfb1 {[%emt 0:16:35]} Nf4 {[%emt 0:01:04]} 23. f3 {[%emt 0:10:25]} Ng5 {[%emt 0:03:50]} 24. Bxf4 {[%emt 0:01:05]} exf4 {[%emt 0:00:50]} 25. Ne2 {[%emt 0:06:02]} a5 {[%emt 0:07:54]} 26. Rxb7 {[%emt 0:04:46]} Rxc4 {[%emt 0:00:37]} 27. Qxf4 {[%emt 0:02:01]} Qxf4 {[%emt 0:03:39]} 28. Nxf4 {[%emt 0:00:03]} Ra4 {[%emt 0:02:41]} 29. R1b2 {[%emt 0:00:42]} Rd8 {[%emt 0:00:30]} 30. Rc7 {[%emt 0:00:57]} g6 {[%emt 0:00:27]} 31. Kf2 {[%emt 0:00:54]} Ra3 {[%emt 0:00:40]} 32. Ne2 {[%emt 0:02:37]} Kg7 {[%emt 0:00:44]} 33. Nc3 {[%emt 0:00:35]} h5 {[%emt 0:00:33]} 34. gxh5 {[%emt 0:00:55]} gxh5 {[%emt 0:00:02]} 35. Rc4 {[%emt 0:01:45]} h4 {[%emt 0:00:55]} 36. Nb5 {[%emt 0:08:25]} Rb8 {[%emt 0:00:18]} 37. Rcc2 {[%emt 0:00:31]} h3 {[%emt 0:00:44]} 38. Kg1 {[%emt 0:04:03]} Rd3 {[%emt 0:00:32]} 39. Nxd6 {[%emt 0:00:37]} Rd1+ {[%emt 0:00:26]} 40. Kh2 {[%emt 0:00:00]} Rh8 {[%emt 0:00:27]} 41. f4 {[%emt 0:06:58]} hxg2+ {[%emt 0:06:01]} 42. Kxg2 {[%emt 0:00:19]} Nh3 {[%emt 0:05:29]} 43. Kg3 {[%emt 0:06:17]} Ng1 {[%emt 0:18:04]} 44. Nf5+ {[%emt 0:01:54]} Kg6 {[%emt 0:00:14]} 45. Rg2 {[%emt 0:03:16]} Rh1 {[%emt 0:00:52]} 46. Kf2+ {[%emt 0:00:18]} Kh7 {[%emt 0:00:37]} 47. Rg7+ 1-0

[Event "BL 2016-17"]
[Site "Germany"]
[Date "2017.04.08"]
[Round "11"]
[White "Moehn, Hans"]
[Black "Smerdon, David C"]
[Result "1-0"]
[ECO "A06"]
[WhiteElo "2382"]
[BlackElo "2533"]
[Annotator "TA RC"]
[PlyCount "47"]
[EventDate "2017.??.??"]
[EventType "team-tourn"]
[EventCountry "GER"]
[SourceTitle "playchess.com"]
[Source "ChessBase"]
[SourceQuality "1"]
[WhiteTeam "TU Dresden"]
[BlackTeam "Werder Bremen"]
[TimeControl "40/6000+30:3000+30"]

1. Nf3 $146 {[%emt 0:00:00]} (1. e4 c5 2. Nc3 Nc6 3. Nf3 e6 4. d4 cxd4 5. Nxd4 a6 6. g3 Qc7 7. Bg2 Nf6 8. O-O Bc5 9. Nb3 Be7 10. a4 O-O 11. f4 d6 12. a5 Nd7 13. Be3 b5 14. axb6 Nxb6 15. Qe2 Rb8 16. g4 Nb4 {½-½ (53) Milosevic,G (2381)-Istratescu,A (2625) Switzerland 2008}) 1... d5 {[%emt 0:00:10]} 2. g3 {[%emt 0:00:00]} g6 {[%emt 0:00:04]} 3. Bg2 {[%emt 0:00:36]} Bg7 {[%emt 0:00:13]} 4. d4 {[%emt 0:00:15]} Nf6 {[%emt 0:00:21]} 5. O-O {[%emt 0:00:08]} O-O {[%emt 0:00:06]} 6. c4 {[%emt 0:00:14]} dxc4 {[%emt 0:00:05]} 7. Na3 {[%emt 0:00:26]} c5 {[%emt 0:04:33]} 8. dxc5 {[%emt 0:06:20]} c3 {[%emt 0:22:04]} 9. Qxd8 {[%emt 0:07:53]} Rxd8 {[%emt 0:00:06]} 10. Nb5 {[%emt 0:00:22]} cxb2 {[%emt 0:16:53]} 11. Bxb2 {[%emt 0:01:42]} Nc6 {[%emt 0:00:06]} 12. Nfd4 {[%emt 0:17:40]} Nxd4 {[%emt 0:24:27]} 13. Nxd4 {[%emt 0:01:15]} Nd5 {[%emt 0:01:38]} 14. e3 {[%emt 0:04:45]} Nb4 {[%emt 0:12:49]} 15. Bc3 {[%emt 0:13:06]} Bxd4 {[%emt 0:04:28]} 16. Bxd4 {[%emt 0:00:23]} Nc6 {[%emt 0:01:40]} 17. Rab1 {[%emt 0:01:51]} Be6 {[%emt 0:11:44]} 18. Rxb7 {[%emt 0:01:20]} Nxd4 {[%emt 0:00:03]} 19. exd4 {[%emt 0:00:35]} Rxd4 {[%emt 0:00:05]} 20. c6 {[%emt 0:08:55]} Rc8 {[%emt 0:00:21]} 21. Rc1 {[%emt 0:01:57]} Kg7 {[%emt 0:06:24]} 22. c7 {[%emt 0:07:51]} a5 {[%emt 0:00:14]} 23. Bf1 {[%emt 0:01:54]} Kf6 {[%emt 0:01:14]} 24. Ra7 {[%emt 0:00:58]} 1-0

[Event "BL 2016-17"]
[Site "Jenbach"]
[Date "2017.04.22"]
[Round "11"]
[White "Kvetny, Mark"]
[Black "Wallner, Joachim"]
[Result "1/2-1/2"]
[ECO "A16"]
[WhiteElo "2372"]
[BlackElo "2322"]
[Annotator "NA"]
[PlyCount "60"]
[EventDate "2017.??.??"]
[EventCountry "AUT"]
[SourceTitle "playchess.com"]
[Source "ChessBase"]
[SourceQuality "1"]
[WhiteTeam "Götzis"]
[BlackTeam "Wulkaprodersdorf"]
[TimeControl "40/5400+30:1800+30"]

{[%evp 9,48,0,2,32767,-16,-23,-26,-34,-4,7,9,15,14,0,37,18,33,47,22,20,32767,32767,32767,32767,9,32767,32767,118,187,7,32767,32767,32767,32767,-4,32767,32767,32767,32767,32767,0]} 1. c4 {[%emt 0:00:00]} Nf6 {[%emt 0:00:17]} 2. Nc3 {[%emt 0:00:02]} e5 {[%emt 0:00:09]} 3. e3 {[%emt 0:00:38]} Bb4 {[%emt 0:04:35]} 4. Nge2 {[%emt 0:00:23]} O-O {[%emt 0:01:51]} 5. a3 {[%emt 0:01:36]} Be7 {[%emt 0:11:26]} 6. g3 {[%emt 0:12:44] A22: English Opening: 1...e5 2 Nc3 Nf6} (6. d4 exd4 7. Qxd4 c6 8. Nf4 Na6 9. Be2 Nc5 10. Rb1 d5 11. b4 Ne6 12. Nxe6 Bxe6 13. cxd5 Nxd5 14. Nxd5 Bxd5 15. f3 Bh4+ 16. g3 Bf6 17. Qd2 Re8 18. Bb2 Bxb2 {½-½ (18) Grachev,B (2683)-Nyzhnyk,I (2607) Denizli 2013}) 6... d5 {[%emt 0:02:53]} 7. cxd5 {[%emt 0:02:15]} Nxd5 {[%emt 0:00:07] LiveBook: 6 Games} 8. Bg2 {[%emt 0:03:16]} Be6 {[%emt 0:00:10]} 9. O-O {[%emt 0:09:08]} c5 $146 {[%emt 0:05:56]} (9... c6 10. Qc2 Nd7 11. d4 Nxc3 12. bxc3 Bc4 13. Rd1 Qa5 {0-1 (32) Pustovoitova,D (2315)-Baciu,D (2166) Albena 2011}) 10. d4 {[%emt 0:10:46]} exd4 {[%emt 0:00:55]} 11. exd4 {[%emt 0:00:14]} cxd4 {[%emt 0:03:17]} 12. Nb5 {[%emt 0:01:41]} d3 {[%emt 0:07:45]} 13. Qxd3 {[%emt 0:04:59]} Nc6 {[%emt 0:00:10]} 14. Ned4 {[%emt 0:04:05]} Nb6 {[%emt 0:08:00]} 15. Rd1 {[%emt 0:05:54]} Nxd4 {[%emt 0:22:43]} 16. Nxd4 {[%emt 0:05:25]} Bg4 $1 {[%emt 0:00:22]} 17. Bf3 {[%emt 0:03:37]} Bxf3 {[%emt 0:00:48]} 18. Qxf3 {[%emt 0:00:50]} Qd7 {[%emt 0:05:50] [#]} (18... Qe8 $16 {might work better.}) 19. Bh6 $2 {[%emt 0:06:08]} (19. Nf5 $1 $18 Qe6 20. Be3 (20. Qxb7 Bf6 21. Nd4 Qg4 $14) (20. Nxe7+ Qxe7 21. Be3 Rfe8 $14)) 19... Bf6 {[%emt 0:01:44]} 20. Nf5 {[%emt 0:11:36]} Qa4 {[%emt 0:00:11]} 21. b4 {[%emt 0:04:54]} gxh6 {[%emt 0:03:12]} 22. Rd6 {[%emt 0:02:45]} Bxa1 {[%emt 0:00:34]} 23. Qg4+ {[%emt 0:01:48]} Kh8 {[%emt 0:00:10]} 24. Rxh6 {[%emt 0:00:27]} Rfd8 $11 {[%emt 0:04:38]} ({And not} 24... Qxa3 {[#]} 25. Rxh7+ $1 {[%mdl 512]} Kxh7 26. Qh5+ Kg8 27. Qg5+ Kh7 28. Qh6+ Kg8 29. Ne7#) 25. Rxh7+ {[%emt 0:00:42]} Kxh7 {[%emt 0:00:02]} 26. Qh5+ {[%emt 0:00:13]} Kg8 {[%emt 0:00:10]} 27. Qg5+ {[%emt 0:00:54]} Kf8 {[%emt 0:00:53]} 28. Qe7+ {[%emt 0:00:37]} Kg8 {[%emt 0:00:12]} 29. Qg5+ {[%emt 0:00:00]} Kf8 {[%emt 0:00:00]} 30. Qe7+ {[%emt 0:00:04]} Kg8 {[%emt 0:00:00]} 1/2-1/2

[Event "BL 2016-17"]
[Site "Germany"]
[Date "2017.04.08"]
[Round "11"]
[White "Gerigk, Erasmus"]
[Black "Baskin, Robert"]
[Result "1-0"]
[ECO "C07"]
[WhiteElo "2354"]
[BlackElo "2348"]
[Annotator "NA"]
[PlyCount "95"]
[EventDate "2017.??.??"]
[EventType "team-tourn"]
[EventCountry "GER"]
[SourceTitle "playchess.com"]
[Source "ChessBase"]
[SourceQuality "1"]
[WhiteTeam "Zugzwang München"]
[BlackTeam "Griesheim"]
[TimeControl "40/6000+30:3000+30"]

1. e4 {[%emt 0:00:00]} e6 {[%emt 0:00:18]} 2. d4 {[%emt 0:00:00]} d5 {[%emt 0:00:06]} 3. Nd2 {[%emt 0:00:00]} c5 {[%emt 0:00:17]} 4. Ngf3 {[%emt 0:00:24]} cxd4 {[%emt 0:00:10]} 5. Nxd4 {[%emt 0:00:24]} Nc6 {[%emt 0:03:09]} 6. Bb5 {[%emt 0:00:26]} Bd7 {[%emt 0:00:07]} 7. Nxc6 {[%emt 0:00:22]} bxc6 {[%emt 0:00:06]} 8. Bd3 {[%emt 0:00:16]} Bd6 {[%emt 0:00:11]} 9. Qe2 {[%emt 0:00:52]} Ne7 {[%emt 0:00:40]} 10. e5 {[%emt 0:08:34]} Bc7 {[%emt 0:01:40]} 11. O-O {[%emt 0:04:17]} Ng6 {[%emt 0:01:15]} 12. Nf3 {[%emt 0:02:08]} O-O {[%emt 0:02:35]} 13. b3 {[%emt 0:02:43]} f6 {[%emt 0:11:31]} 14. Bxg6 {[%emt 0:04:54]} hxg6 {[%emt 0:00:16]} 15. Ba3 {[%emt 0:01:55]} Re8 $16 {[%emt 0:05:01]} 16. h4 {[%emt 0:07:32]} Bxe5 {[%emt 0:05:56]} 17. Nxe5 {[%emt 0:00:53]} fxe5 {[%emt 0:00:05]} 18. Qxe5 {[%emt 0:01:05]} Qxh4 {[%emt 0:00:27]} 19. Rfe1 {[%emt 0:03:29]} Qf6 {[%emt 0:03:49]} 20. f4 {[%emt 0:17:28]} Qxe5 {[%emt 0:05:43]} 21. fxe5 {[%emt 0:01:39]} a5 {[%emt 0:04:54]} 22. Bc5 {[%emt 0:01:33]} a4 {[%emt 0:00:31]} 23. b4 {[%emt 0:01:26]} a3 {[%emt 0:05:33]} 24. Re3 {[%emt 0:08:55]} Bc8 {[%emt 0:00:34]} 25. Kh2 {[%emt 0:03:39]} Rd8 {[%emt 0:03:44]} 26. Rf3 {[%emt 0:02:30]} Ra4 {[%emt 0:15:45]} 27. Kg3 {[%emt 0:05:24]} Ba6 {[%emt 0:02:19]} 28. Kh4 {[%emt 0:03:32]} d4 {[%emt 0:09:56]} 29. Kg5 {[%emt 0:04:56]} Bc4 {[%emt 0:00:23]} 30. Rf4 {[%emt 0:05:45]} Be2 {[%emt 0:04:40]} 31. Re1 {[%emt 0:02:27]} d3 {[%emt 0:03:48]} 32. cxd3 {[%emt 0:01:46]} Bxd3 {[%emt 0:00:06]} 33. Rd1 {[%emt 0:00:59]} Raa8 {[%emt 0:00:16]} 34. Bd6 {[%emt 0:00:53]} Bc2 {[%emt 0:06:36]} 35. Rc1 {[%emt 0:04:23]} Bd3 {[%emt 0:01:41]} 36. Rd1 {[%emt 0:00:20]} Bc2 {[%emt 0:00:14]} 37. Rd2 {[%emt 0:00:11]} Bb1 {[%emt 0:00:27]} 38. Rf1 {[%emt 0:01:39]} Be4 {[%emt 0:01:18]} 39. Re1 {[%emt 0:01:19]} Bd5 {[%emt 0:00:47]} 40. Kxg6 {[%emt 0:01:09]} Rd7 {[%emt 0:55:31]} 41. Rf2 {[%emt 0:51:22]} Bc4 {[%emt 0:01:02]} 42. Re3 {[%emt 0:01:06]} Bd5 {[%emt 0:00:43]} 43. Ree2 {[%emt 0:00:00]} Rad8 {[%emt 0:00:00]} 44. g4 {[%emt 0:00:00]} Ra8 {[%emt 0:00:00]} 45. Rf4 {[%emt 0:00:00]} Rad8 {[%emt 0:00:00]} 46. Rh2 {[%emt 0:00:00]} Rxd6 {[%emt 0:00:00]} 47. exd6 {[%emt 0:00:00]} Rxd6 {[%emt 0:00:00]} 48. Rh8+ {[%emt 0:00:00]} 1-0

[Event "BL 2016-17"]
[Site "Germany"]
[Date "2017.04.08"]
[Round "11"]
[White "Capone, Nicola"]
[Black "Schroeder, Kevin"]
[Result "1/2-1/2"]
[ECO "E11"]
[WhiteElo "2349"]
[BlackElo "2266"]
[Annotator "NA"]
[PlyCount "97"]
[EventDate "2017.??.??"]
[EventType "team-tourn"]
[EventCountry "GER"]
[SourceTitle "playchess.com"]
[Source "ChessBase"]
[SourceQuality "1"]
[WhiteTeam "Aufwärts Aachen"]
[BlackTeam "Solingen"]
[TimeControl "40/6000+30:3000+30"]

1. d4 Nf6 2. c4 e6 3. Nf3 Bb4+ 4. Nbd2 b6 5. a3 Bxd2+ 6. Qxd2 Bb7 7. b3 O-O 8. e3 d6 9. Be2 Nbd7 10. Bb2 Qe7 11. O-O {LiveBook: 16 Games} e5 12. d5 b5 13. cxb5 Bxd5 14. b4 Nb6 $14 15. a4 Ne4 16. Qc2 Rac8 17. a5 Nd7 18. Nd2 Nxd2 19. Qxd2 Ba8 20. Rfd1 Qg5 21. f3 f5 22. Bc4+ Kh8 23. Be6 Rcd8 24. Kh1 Qe7 25. Bd5 Nf6 26. Bxa8 Rxa8 27. Rac1 Rab8 28. Qe2 Qf7 29. Rc6 Nd5 30. Ba3 f4 31. e4 Ne3 32. Rdc1 Qb3 33. Qb2 Qd3 34. R6c3 Qxb5 35. Rxc7 Qd3 36. R7c3 Qb5 37. Qd2 h6 38. Qd3 Qa4 39. Rc7 Rfd8 40. Qc3 Nd1 41. Qd2 Qxa3 42. Qxd1 Rxb4 43. Qd5 Qb3 44. Qxb3 Rxb3 45. h3 d5 46. Rc8 Rxc8 47. Rxc8+ Kh7 48. exd5 Rd3 49. Rc7 1/2-1/2

[Event "BL 2016-17"]
[Site "Germany"]
[Date "2017.04.08"]
[Round "11"]
[White "Mager, Denis"]
[Black "Thiede, Lars"]
[Result "0-1"]
[ECO "C66"]
[WhiteElo "2320"]
[BlackElo "2422"]
[Annotator "ChessBase"]
[PlyCount "98"]
[EventDate "2017.??.??"]
[EventType "team-tourn"]
[EventCountry "GER"]
[SourceTitle "playchess.com"]
[Source "ChessBase"]
[SourceQuality "1"]
[WhiteTeam "Speyer-Schwegenheim"]
[BlackTeam "SF Berlin"]
[TimeControl "40/6000+30:3000+30"]

1. e4 {[%emt 0:00:00]} d6 {[%emt 0:00:24]} 2. d4 {[%emt 0:00:02]} Nf6 {[%emt 0:01:19]} 3. Nc3 {[%emt 0:01:15]} e5 {[%emt 0:00:08]} 4. Nf3 {[%emt 0:01:03]} Nc6 {[%emt 0:01:43]} 5. Bb5 {[%emt 0:01:24]} Bd7 {[%emt 0:13:43]} 6. O-O {[%emt 0:06:35]} Be7 {[%emt 0:07:23]} 7. d5 {[%emt 0:08:27]} Nb8 {[%emt 0:00:30]} 8. a4 {[%emt 0:04:10]} O-O {[%emt 0:01:28]} 9. Ne1 {[%emt 0:06:41]} c6 {[%emt 0:05:36]} 10. Bc4 {[%emt 0:02:51]} cxd5 {[%emt 0:02:07]} 11. Bxd5 {[%emt 0:04:15]} Nc6 {[%emt 0:05:52]} 12. Nf3 {[%emt 0:05:19]} Bg4 {[%emt 0:05:38]} 13. Be3 {[%emt 0:02:32]} Kh8 {[%emt 0:07:15]} 14. h3 {[%emt 0:03:04]} Bh5 {[%emt 0:01:07]} 15. Ba2 {[%emt 0:24:18]} Nb4 {[%emt 0:04:02]} 16. Bb3 {[%emt 0:03:15]} Bg6 {[%emt 0:05:44]} 17. Qe1 {[%emt 0:06:34]} a5 {[%emt 0:08:11]} 18. Rd1 {[%emt 0:04:17]} Qe8 {[%emt 0:04:18]} 19. Nb5 {[%emt 0:07:44]} Qc6 {[%emt 0:08:02]} 20. c3 {[%emt 0:06:08]} Na6 {[%emt 0:01:26]} 21. Nh4 {[%emt 0:09:19]} Bxe4 {[%emt 0:07:58]} 22. f3 {[%emt 0:00:14]} Bg6 {[%emt 0:00:26]} 23. Nxg6+ {[%emt 0:00:50]} fxg6 {[%emt 0:02:54]} 24. Qd2 {[%emt 0:00:50]} Nc5 {[%emt 0:01:34]} 25. Bc2 {[%emt 0:00:16]} d5 {[%emt 0:01:28]} 26. Bg5 {[%emt 0:00:43]} Rad8 {[%emt 0:01:47]} 27. Rfe1 {[%emt 0:00:13]} e4 {[%emt 0:04:54]} 28. Nd4 {[%emt 0:00:38]} Qb6 {[%emt 0:00:09]} 29. b3 {[%emt 0:00:48]} Ne6 {[%emt 0:02:53]} 30. Be3 {[%emt 0:00:07]} exf3 {[%emt 0:00:38]} 31. Nxf3 {[%emt 0:00:42]} Bc5 {[%emt 0:00:07]} 32. Nd4 {[%emt 0:00:38]} Nxd4 {[%emt 0:00:20]} 33. Bxd4 {[%emt 0:00:07]} Rc8 {[%emt 0:00:13]} 34. Re3 {[%emt 0:00:54]} Rfe8 {[%emt 0:00:50]} 35. Rxe8+ {[%emt 0:00:42]} Rxe8 {[%emt 0:00:35]} 36. Qf2 {[%emt 0:00:28]} Bxd4 {[%emt 0:00:14]} 37. Rxd4 {[%emt 0:00:19]} Qc5 {[%emt 0:00:30]} 38. Qd2 {[%emt 0:00:45]} Rc8 {[%emt 0:03:35]} 39. c4 {[%emt 0:00:18]} dxc4 {[%emt 0:00:20]} 40. Kh1 {[%emt 0:00:33]} c3 {[%emt 0:50:53]} 41. Qd3 {[%emt 0:50:24]} Qe7 {[%emt 0:00:00]} 42. Qb5 {[%emt 0:00:00]} Qe3 {[%emt 0:00:00]} 43. Rd1 {[%emt 0:00:00]} b6 {[%emt 0:00:00]} 44. b4 {[%emt 0:00:00]} Qf2 {[%emt 0:00:00]} 45. Qd3 {[%emt 0:00:00]} axb4 {[%emt 0:00:00]} 46. Bb3 {[%emt 0:00:00]} Re8 {[%emt 0:00:00]} 47. Qc4 {[%emt 0:00:00]} h5 {[%emt 0:00:00]} 48. Qxb4 {[%emt 0:00:00]} c2 {[%emt 0:00:00]} 49. Rc1 {[%emt 0:00:00]} Re2 {[%emt 0:00:00]} 0-1

[Event "BL 2016-17"]
[Site "Jenbach"]
[Date "2017.04.22"]
[Round "11"]
[White "Ceschia, Ivano"]
[Black "Repkova, Eva"]
[Result "1-0"]
[ECO "B01"]
[WhiteElo "2301"]
[BlackElo "2328"]
[Annotator "NA"]
[PlyCount "59"]
[EventDate "2017.??.??"]
[EventCountry "AUT"]
[SourceTitle "playchess.com"]
[Source "ChessBase"]
[SourceQuality "1"]
[WhiteTeam "St. Veit"]
[BlackTeam "Bregenz"]
[TimeControl "40/5400+30:1800+30"]

{[%evp 9,58,54,41,48,70,27,46,41,24,37,33,19,44,37,67,32,32,37,44,44,60,32767,32767,51,54,32767,32767,32767,71,46,60,32767,45,51,105,32767,32767,85,83,32767,32767,1,32767,0,370,32767,32767,32767,32767,32767,1005]} 1. e4 {[%emt 0:00:00]} d5 {[%emt 0:00:02]} 2. exd5 {[%emt 0:00:00]} Qxd5 {[%emt 0:00:04]} 3. Nc3 {[%emt 0:00:00]} Qd6 {[%emt 0:00:03]} 4. d4 {[%emt 0:00:12]} Nf6 {[%emt 0:00:09]} 5. Nf3 {[%emt 0:00:34]} Bg4 {[%emt 0:00:53]} 6. h3 {[%emt 0:00:22]} Bh5 {[%emt 0:00:01] B01: Scandinavian Defence} 7. Be2 {[%emt 0:14:05]} (7. g4 Bg6 8. Ne5 Nbd7 9. Nxg6 hxg6 10. Bg2 c6 11. Qd3 e6 12. Bd2 Nb6 13. O-O-O Nbd5 14. Ne2 {1-0 (39) Bologan,V (2640)-Kovalenko,I (2684) Tallinn 2016}) 7... a6 {[%emt 0:02:45] LiveBook: 7 Games} 8. Bg5 {[%emt 0:12:06]} Nbd7 {[%emt 0:10:14]} 9. Qd2 {[%emt 0:08:15]} e6 {[%emt 0:00:52]} 10. O-O-O {[%emt 0:03:15]} Be7 {[%emt 0:00:37]} 11. Rhe1 $146 {[%emt 0:04:12]} (11. d5 exd5 12. Bf4 Qc5 13. Be3 Qd6 14. Nh4 {½-½ (38) Marez,S (2295)-Mailfert,J (2342) ICCF email 2010}) 11... O-O {[%emt 0:04:10]} 12. Ne5 {[%emt 0:07:47]} Bxe2 {[%emt 0:01:41]} 13. Qxe2 {[%emt 0:01:39]} Rad8 {[%emt 0:03:27]} 14. f4 {[%emt 0:03:22]} h6 {[%emt 0:03:55]} 15. Bh4 {[%emt 0:04:33]} Nd5 {[%emt 0:00:05]} 16. Ne4 {[%emt 0:06:12]} Qb6 {[%emt 0:01:45]} 17. Bxe7 {[%emt 0:01:14]} Nxe7 {[%emt 0:00:06]} 18. c3 {[%emt 0:06:34]} Nd5 {[%emt 0:03:25]} 19. Nxd7 {[%emt 0:00:59]} Rxd7 {[%emt 0:00:06]} 20. Qf3 {[%emt 0:00:28]} Qb5 {[%emt 0:03:18]} 21. g4 {[%emt 0:01:52]} b6 {[%emt 0:00:35]} ({Black should try} 21... f5 $14 22. Nc5 fxg4 23. Qxg4 Rd6) 22. g5 {[%emt 0:01:12]} hxg5 {[%emt 0:00:01]} 23. fxg5 {[%emt 0:00:18]} ({But not} 23. Nxg5 $6 c5 $11) 23... Ne7 {[%emt 0:00:11]} 24. h4 {[%emt 0:02:39]} Qf5 {[%emt 0:02:16]} 25. Qd3 {[%emt 0:08:08]} ({Better is} 25. Qe2 $16) 25... c5 {[%emt 0:01:21]} 26. Rf1 {[%emt 0:01:46]} Qg6 $2 {[%emt 0:00:06]} (26... Qg4 $11 {and Black is okay.}) 27. h5 {[%emt 0:01:29]} Qxh5 {[%emt 0:00:28]} 28. Rh1 {[%emt 0:00:14]} c4 {[%emt 0:01:18]} 29. Qg3 {[%emt 0:03:52]} Nf5 $18 {[%emt 0:00:07]} 30. Rxh5 {[%emt 0:00:11]} 1-0